[Event "SWE-ch Masters 2018"]
[Site "Ronneby"]
[Date "2018.07.01"]
[Round "2"]
[White "Nordahl, Nils"]
[Black "Palmblad, Jan Peter"]
[Result "1/2-1/2"]
[ECO "B33"]
[WhiteElo "1839"]
[BlackElo "2099"]
[Annotator "NA"]
[PlyCount "131"]
[EventDate "2018.06.30"]
[EventType "tourn"]
[EventCountry "SWE"]
[SourceTitle "playchess.com"]
[Source "ChessBase"]
[SourceQuality "1"]
[TimeControl "40/5400+30:1800+30"]

1. e4 {[%emt 0:00:00]} c5 {[%emt 0:02:56]} 2. Nf3 {[%emt 0:00:00]} Nc6 {[%emt 0:00:08]} 3. d4 {[%emt 0:00:06]} cxd4 {[%emt 0:00:08]} 4. Nxd4 {[%emt 0:00:16]} Nf6 {[%emt 0:00:08]} 5. Nc3 {[%emt 0:00:07]} e5 {[%emt 0:00:06]} 6. Ndb5 {[%emt 0:00:44]} d6 {[%emt 0:00:12]} 7. Bg5 {[%emt 0:00:29]} a6 {[%emt 0:00:09]} 8. Na3 {[%emt 0:00:05]} b5 {[%emt 0:00:06]} 9. Nd5 {[%emt 0:00:22]} Qa5+ {[%emt 0:00:13]} 10. Bd2 {[%emt 0:00:16]} Qd8 {[%emt 0:00:07]} 11. Bg5 {[%emt 0:00:08]} Be7 {[%emt 0:00:07]} 12. Bxf6 {[%emt 0:00:53]} Bxf6 {[%emt 0:00:08]} 13. Nxf6+ {[%emt 0:02:11]} Qxf6 {[%emt 0:00:17]} 14. c3 {[%emt 0:03:01]} O-O {[%emt 0:00:17]} 15. Bd3 {[%emt 0:07:21]} Ne7 {[%emt 0:01:36]} 16. O-O {[%emt 0:00:31]} Bb7 {[%emt 0:00:37]} 17. Nc2 {[%emt 0:01:19]} d5 {[%emt 0:01:12]} 18. Qe2 {[%emt 0:06:47]} Ng6 {[%emt 0:08:52]} 19. g3 $2 {[%emt 0:00:40] [#]} (19. exd5 $11 {and White stays safe.} Bxd5 20. Ne3) 19... Qe6 $2 {[%emt 0:00:20]} ({Black should try} 19... Nf4 $1 $19 {[%cal Rf4e2][%mdl 512]} 20. Qe3 (20. gxf4 $2 Qg6+ 21. Kh1 dxe4 $19) 20... Rfd8 21. exd5 (21. gxf4 $2 exf4 22. Qf3 Qg6+ 23. Kh1 dxe4 $19) 21... Nxd3 22. Qxd3 Rxd5) 20. Rad1 {[%emt 0:08:00] [#]} (20. f3 $11 {remains equal.}) 20... Rad8 {[%emt 0:04:36]} (20... Nf4 $1 $17 {[%mdl 512]} 21. Qe3 (21. gxf4 $2 Qg6+ 22. Kh1 dxe4 $19) 21... Nxd3 22. Qxd3 dxe4) 21. a3 {[%emt 0:13:25]} dxe4 {[%emt 0:01:55]} 22. Bxe4 {[%emt 0:00:15]} Bxe4 {[%emt 0:00:13]} (22... Nf4 $5 23. Qe3 (23. gxf4 $2 Bxe4 24. Qxe4 Rxd1 $19) 23... Bxe4 24. Qxe4 Nh3+ 25. Kg2 Ng5 $15) 23. Qxe4 {[%emt 0:00:49]} f5 {[%emt 0:00:37]} 24. Qe2 {[%emt 0:04:03]} Qb3 {[%emt 0:00:52]} 25. Nb4 {[%emt 0:04:13]} Qe6 {[%emt 0:00:35]} 26. Rxd8 {[%emt 0:01:08]} Rxd8 {[%emt 0:00:11]} 27. Rd1 {[%emt 0:00:14]} Rd6 {[%emt 0:00:44]} 28. Rxd6 {[%emt 0:01:08]} Qxd6 {[%emt 0:00:08]} 29. Qd3 {[%emt 0:00:14]} Qxd3 {[%emt 0:04:28]} 30. Nxd3 {[%emt 0:00:06]} Kf7 {[%emt 0:00:08]} 31. Nc5 {[%emt 0:02:13]} Ke7 {[%emt 0:00:09]} 32. Nxa6 {[%emt 0:00:19]} Kd6 {[%emt 0:00:10]} 33. Nb4 {[%emt 0:04:14]} Kc5 {[%emt 0:02:57]} ({Black should try} 33... Nf8 $14) 34. b3 {[%emt 0:00:27]} e4 {[%emt 0:01:08]} 35. Kf1 {[%emt 0:00:47]} Ne5 {[%emt 0:01:11]} 36. Ke2 {[%emt 0:00:56]} g5 {[%emt 0:00:58]} 37. h3 {[%emt 0:02:56]} ({Lieber} 37. Nc2 $16) 37... f4 {[%emt 0:00:25]} 38. Nc2 {[%emt 0:02:08]} Nd3 {[%emt 0:00:26]} ({Black should play} 38... Nf3 $1 $14) 39. Nd4 {[%emt 0:00:14]} Kd5 {[%emt 0:01:15]} 40. h4 {[%emt 0:06:52]} ({Much worse is} 40. Nxb5 Nc1+ 41. Ke1 Nxb3 $11) 40... gxh4 {[%emt 0:12:20]} 41. gxh4 {[%emt 0:30:17]} b4 $2 {[%emt 0:30:18]} (41... f3+ $16 42. Kf1 Kc5) 42. axb4 {[%emt 0:02:28]} Ne5 {[%emt 0:11:42]} 43. b5 $18 {[%emt 0:04:54]} f3+ {[%emt 0:02:44]} 44. Ke1 {[%emt 0:07:21]} Kc5 {[%emt 0:04:38]} 45. Ne6+ {[%emt 0:09:06]} Kxb5 {[%emt 0:01:00]} 46. Ng5 {[%emt 0:00:39]} h6 {[%emt 0:05:56]} 47. Nxe4 {[%emt 0:00:45]} Ng6 {[%emt 0:00:53]} 48. h5 {[%emt 0:00:00]} Nf4 {[%emt 0:00:00]} 49. Nd6+ {[%emt 0:00:00]} Kc5 {[%emt 0:00:00]} 50. Nf5 {[%emt 0:00:00]} Nxh5 {[%emt 0:00:00]} 51. Nxh6 {[%emt 0:00:00]} Nf6 {[%emt 0:00:00]} 52. Nf5 {[%emt 0:00:00]} Ne4 {[%emt 0:00:00]} 53. Nd4 {[%emt 0:00:00]} Nxc3 {[%emt 0:00:00]} 54. Nxf3 {[%emt 0:00:00]} Kd5 {[%emt 0:00:00]} 55. Kd2 {[%emt 0:00:00]} Ne4+ {[%emt 0:00:00]} 56. Ke3 {[%emt 0:00:00]} Nc3 {[%emt 0:00:00]} 57. Nd2 {[%emt 0:00:00]} Nd1+ {[%emt 0:00:00]} 58. Ke2 {[%emt 0:00:00]} Nc3+ {[%emt 0:00:00]} 59. Kd3 {[%emt 0:00:00]} Nb5 {[%emt 0:00:00]} 60. f4 {[%emt 0:00:00]} Nd4 {[%emt 0:00:00]} 61. b4 {[%emt 0:00:00]} Nc6 {[%emt 0:00:00]} 62. b5 {[%emt 0:00:00]} Nb4+ {[%emt 0:00:00]} 63. Kc3 {[%emt 0:00:00]} Kc5 {[%emt 0:00:00]} 64. b6 {[%emt 0:00:00]} Nd5+ {[%emt 0:00:00]} 65. Kd3 {[%emt 0:00:00]} Nxf4+ {[%emt 0:00:00]} 66. Ke4 1/2-1/2

[Event "SWE-ch Masters 2018"]
[Site "Ronneby"]
[Date "2018.07.03"]
[Round "4"]
[White "Wengholm, Anders"]
[Black "Neretljak, Nedzad"]
[Result "1-0"]
[ECO "A07"]
[WhiteElo "2186"]
[BlackElo "2108"]
[Annotator "NA"]
[PlyCount "79"]
[EventDate "2018.06.30"]
[EventType "tourn"]
[EventCountry "SWE"]
[SourceTitle "playchess.com"]
[Source "ChessBase"]
[SourceQuality "1"]
[TimeControl "40/5400+30:1800+30"]

1. Nf3 {[%emt 0:00:00]} d5 {[%emt 0:00:00]} 2. g3 {[%emt 0:00:00]} Nc6 {[%emt 0:00:00]} 3. d3 {[%emt 0:00:09]} e5 {[%emt 0:00:26]} 4. c3 {[%emt 0:00:18]} g6 {[%emt 0:01:47]} 5. b4 {[%emt 0:00:54]} a6 {[%emt 0:00:15]} 6. Qc2 {[%emt 0:01:01]} Bg7 {[%emt 0:00:48]} 7. Bg2 {[%emt 0:01:07]} Nf6 {[%emt 0:02:18]} 8. O-O {[%emt 0:02:18]} O-O {[%emt 0:02:50]} 9. a3 {[%emt 0:03:58]} Nh5 {[%emt 0:02:42]} 10. e4 {[%emt 0:00:43]} d4 {[%emt 0:07:08]} 11. cxd4 {[%emt 0:02:03]} exd4 {[%emt 0:00:12]} 12. Nbd2 {[%emt 0:02:02]} h6 {[%emt 0:01:12]} 13. Bb2 {[%emt 0:01:29]} Be6 {[%emt 0:03:46]} 14. Nb3 {[%emt 0:06:39]} Qc8 {[%emt 0:04:13]} 15. Nbxd4 {[%emt 0:03:06]} Nxd4 {[%emt 0:02:08]} 16. Bxd4 {[%emt 0:00:49]} Bh3 {[%emt 0:00:37]} 17. Bxg7 {[%emt 0:06:49]} Kxg7 {[%emt 0:01:36]} 18. Qd2 {[%emt 0:21:26]} Rd8 {[%emt 0:00:33]} 19. Qe3 {[%emt 0:07:23]} g5 {[%emt 0:05:28]} 20. Nxg5 {[%emt 0:06:32]} Bxg2 {[%emt 0:05:27]} 21. Kxg2 {[%emt 0:01:21]} Qg4 {[%emt 0:01:45]} 22. Nh3 {[%emt 0:00:11]} Rd6 {[%emt 0:00:34]} 23. f3 {[%emt 0:05:33]} Qd7 {[%emt 0:00:06]} 24. Nf2 {[%emt 0:00:14]} Rg6 {[%emt 0:00:17]} 25. Rac1 {[%emt 0:00:27]} Rg8 {[%emt 0:00:37]} 26. Rc5 {[%emt 0:01:51]} Nf6 {[%emt 0:00:20]} 27. Rfc1 {[%emt 0:00:57]} c6 {[%emt 0:00:08]} 28. Rf5 {[%emt 0:02:22]} Kh7 {[%emt 0:01:38]} 29. Qf4 {[%emt 0:02:47]} Kg7 {[%emt 0:01:59]} 30. Qe5 {[%emt 0:00:48]} Re8 {[%emt 0:00:18]} 31. Qc3 {[%emt 0:00:26]} h5 {[%emt 0:01:43]} 32. Rxh5 {[%emt 0:01:04]} Kf8 {[%emt 0:01:12]} 33. Rh8+ {[%emt 0:01:38]} Ng8 {[%emt 0:00:08]} 34. Qc5+ {[%emt 0:00:39]} Kg7 {[%emt 0:00:46]} 35. Rh5 {[%emt 0:00:25]} Nf6 {[%emt 0:00:38]} 36. Rg5 {[%emt 0:00:31]} Rh8 {[%emt 0:00:44]} 37. Rxg6+ {[%emt 0:00:21]} fxg6 {[%emt 0:00:09]} 38. Rc4 {[%emt 0:00:53]} Rh5 {[%emt 0:00:19]} 39. Qd4 {[%emt 0:00:23]} Qc7 {[%emt 0:00:21]} 40. Ng4 {[%emt 0:02:06]} 1-0

[Event "SWE-ch Masters 2018"]
[Site "Ronneby"]
[Date "2018.07.04"]
[Round "5"]
[White "Walinder, Lars"]
[Black "Mattsson, Michael"]
[Result "1-0"]
[ECO "A28"]
[WhiteElo "2231"]
[BlackElo "2032"]
[Annotator "NA"]
[PlyCount "49"]
[EventDate "2018.06.30"]
[EventType "tourn"]
[EventCountry "SWE"]
[SourceTitle "playchess.com"]
[Source "ChessBase"]
[SourceQuality "1"]
[TimeControl "40/5400+30:1800+30"]

1. c4 {[%emt 0:00:00]} e5 {[%emt 0:00:00]} 2. Nc3 {[%emt 0:00:00]} Nf6 {[%emt 0:00:17]} 3. Nf3 {[%emt 0:00:15]} Nc6 {[%emt 0:00:05]} 4. e3 {[%emt 0:00:08]} Bb4 {[%emt 0:00:25]} 5. Qc2 {[%emt 0:00:42]} O-O {[%emt 0:00:47]} 6. Nd5 {[%emt 0:00:35]} a5 {[%emt 0:01:13]} 7. a3 {[%emt 0:05:41]} Bc5 {[%emt 0:01:43]} 8. Ng5 {[%emt 0:22:58]} g6 {[%emt 0:06:30]} 9. h4 {[%emt 0:00:17]} d6 {[%emt 0:03:27]} 10. Nxf6+ {[%emt 0:16:31]} Qxf6 {[%emt 0:00:09]} 11. Ne4 {[%emt 0:00:44]} Qe7 {[%emt 0:01:05]} 12. b3 {[%emt 0:03:34]} Bf5 {[%emt 0:10:31]} 13. Bd3 {[%emt 0:06:19]} Bb6 {[%emt 0:08:13]} 14. Bb2 {[%emt 0:01:00]} Rfd8 {[%emt 0:01:30]} 15. h5 {[%emt 0:05:50]} d5 {[%emt 0:07:34]} 16. cxd5 {[%emt 0:01:28]} Rxd5 {[%emt 0:00:20]} 17. Bc4 {[%emt 0:03:08]} Rd7 {[%emt 0:05:41]} 18. O-O-O {[%emt 0:07:46]} Bc5 {[%emt 0:03:03]} 19. g4 {[%emt 0:01:31]} Bxe4 {[%emt 0:09:13]} 20. Qxe4 {[%emt 0:00:25]} Kg7 {[%emt 0:01:28]} 21. hxg6 {[%emt 0:01:18]} hxg6 {[%emt 0:03:46]} 22. Qf4 {[%emt 0:03:08]} Bxa3 {[%emt 0:10:21]} 23. Qh6+ {[%emt 0:00:14]} Kf6 {[%emt 0:00:13]} 24. g5+ {[%emt 0:04:17]} Kf5 {[%emt 0:00:05]} 25. Qh3+ {[%emt 0:00:22]} 1-0

[Event "SWE-ch Masters 2018"]
[Site "Ronneby"]
[Date "2018.07.04"]
[Round "5"]
[White "Laksman, Efraim"]
[Black "Nyander, Joakim"]
[Result "0-1"]
[ECO "A30"]
[WhiteElo "2184"]
[BlackElo "2203"]
[Annotator "NA"]
[PlyCount "88"]
[EventDate "2018.06.30"]
[EventType "tourn"]
[EventCountry "SWE"]
[SourceTitle "playchess.com"]
[Source "ChessBase"]
[SourceQuality "1"]
[TimeControl "40/5400+30:1800+30"]

1. c4 {[%emt 0:00:00]} c5 {[%emt 0:00:00]} 2. g3 {[%emt 0:00:00]} e6 {[%emt 0:01:22]} 3. Bg2 {[%emt 0:00:13]} Nf6 {[%emt 0:00:21]} 4. Nf3 {[%emt 0:01:32]} a6 {[%emt 0:02:25]} 5. d4 {[%emt 0:00:44]} cxd4 {[%emt 0:04:02]} 6. Nxd4 {[%emt 0:00:06]} Qc7 {[%emt 0:01:16]} 7. b3 {[%emt 0:01:00]} Bb4+ {[%emt 0:00:41]} 8. Bd2 {[%emt 0:00:08]} Be7 {[%emt 0:00:27]} 9. O-O {[%emt 0:00:11]} Nc6 {[%emt 0:05:20]} 10. Nxc6 {[%emt 0:02:29]} dxc6 {[%emt 0:02:51]} 11. Qc2 {[%emt 0:02:02]} O-O {[%emt 0:01:42]} 12. Bc3 {[%emt 0:00:16]} b6 {[%emt 0:03:59]} 13. Nd2 {[%emt 0:00:56]} Rd8 {[%emt 0:03:35]} 14. Ne4 {[%emt 0:05:34]} Nd7 {[%emt 0:00:30]} 15. h4 {[%emt 0:07:08]} h6 {[%emt 0:00:20]} 16. Qb2 {[%emt 0:01:08]} f6 {[%emt 0:07:34]} 17. Rad1 {[%emt 0:01:04]} Bb7 {[%emt 0:01:09]} 18. Qc2 {[%emt 0:05:28]} Nf8 {[%emt 0:03:58]} 19. c5 {[%emt 0:04:44]} bxc5 {[%emt 0:14:03]} 20. Bb2 {[%emt 0:08:04]} Rd5 {[%emt 0:03:50]} 21. Nd2 {[%emt 0:03:38]} Rd7 {[%emt 0:01:02]} 22. Rc1 {[%emt 0:01:56]} a5 {[%emt 0:04:42]} 23. Rfd1 {[%emt 0:09:44]} a4 {[%emt 0:03:22]} 24. Ne4 {[%emt 0:03:19]} Rxd1+ {[%emt 0:01:36]} 25. Rxd1 {[%emt 0:02:08]} axb3 {[%emt 0:00:51]} 26. axb3 {[%emt 0:00:15]} Qb6 {[%emt 0:05:13]} 27. Bc1 {[%emt 0:10:13]} Ra1 {[%emt 0:06:28]} 28. Be3 {[%emt 0:00:12]} Rxd1+ {[%emt 0:00:13]} 29. Qxd1 {[%emt 0:00:02]} Qb5 {[%emt 0:00:23]} 30. Qc2 {[%emt 0:02:44]} Nd7 {[%emt 0:00:43]} 31. Nc3 {[%emt 0:06:10]} Qb4 {[%emt 0:01:20]} 32. Qg6 {[%emt 0:03:31]} Kf8 {[%emt 0:04:47]} 33. Ne4 {[%emt 0:05:22]} Qxb3 {[%emt 0:04:39]} 34. Qh7 {[%emt 0:00:27]} Qd1+ {[%emt 0:02:20]} 35. Kh2 {[%emt 0:00:52]} Qxe2 {[%emt 0:01:08]} 36. Nd2 {[%emt 0:01:38]} Ne5 {[%emt 0:02:10]} 37. Bh3 {[%emt 0:03:31]} Ng4+ {[%emt 0:02:18]} 38. Bxg4 {[%emt 0:01:22]} Qxg4 {[%emt 0:00:03]} 39. Qh8+ {[%emt 0:01:31]} Kf7 {[%emt 0:00:02]} 40. Qb8 {[%emt 0:00:07]} Qb4 {[%emt 0:01:40]} 41. Nf3 {[%emt 0:34:21]} Ba6 {[%emt 0:32:45]} 42. Qa8 {[%emt 0:00:18]} Bc4 {[%emt 0:00:21]} 43. h5 {[%emt 0:00:22]} Bd5 {[%emt 0:00:58]} 44. Nh4 {[%emt 0:00:01]} Qe1 {[%emt 0:00:00]} 0-1

[Event "SWE-ch Masters 2018"]
[Site "Ronneby"]
[Date "2018.07.04"]
[Round "5"]
[White "Adler, Bo"]
[Black "Nordahl, Nils"]
[Result "1-0"]
[ECO "B21"]
[WhiteElo "2177"]
[BlackElo "1839"]
[Annotator "NA"]
[PlyCount "47"]
[EventDate "2018.06.30"]
[EventType "tourn"]
[EventCountry "SWE"]
[SourceTitle "playchess.com"]
[Source "ChessBase"]
[SourceQuality "1"]
[TimeControl "40/5400+30:1800+30"]

1. e4 {[%emt 0:00:00]} c5 {[%emt 0:00:00]} 2. f4 {[%emt 0:00:00]} d6 {[%emt 0:00:13]} 3. Nf3 {[%emt 0:00:06]} Nc6 {[%emt 0:00:56]} 4. Bb5 {[%emt 0:00:43]} a6 {[%emt 0:01:19]} 5. Bxc6+ {[%emt 0:00:07]} bxc6 {[%emt 0:00:06]} 6. O-O {[%emt 0:00:09]} Nf6 {[%emt 0:02:02]} 7. e5 {[%emt 0:01:16]} Nd5 {[%emt 0:01:46]} 8. d3 {[%emt 0:05:13]} e6 {[%emt 0:03:17]} 9. c4 {[%emt 0:01:25]} Nc7 {[%emt 0:00:55]} 10. exd6 {[%emt 0:01:23]} Bxd6 {[%emt 0:00:39]} 11. Nc3 {[%emt 0:01:04]} O-O {[%emt 0:00:55]} 12. Be3 {[%emt 0:00:33]} Qe7 {[%emt 0:04:02]} 13. Ne4 Rd8 {[%emt 0:02:51]} 14. Ne5 {[%emt 0:08:04]} Bd7 {[%emt 0:03:54]} 15. Qh5 {[%emt 0:02:40]} f6 {[%emt 0:04:14]} 16. Nxd6 {[%emt 0:16:05]} Qxd6 {[%emt 0:05:40]} 17. Qf7+ {[%emt 0:02:35]} Kh8 {[%emt 0:00:28]} 18. Qxf6 {[%emt 0:00:28]} gxf6 {[%emt 0:08:02]} 19. Nf7+ {[%emt 0:00:22]} Kg8 {[%emt 0:00:09]} 20. Nxd6 {[%emt 0:00:05]} Ne8 {[%emt 0:01:36]} 21. Nb7 {[%emt 0:03:01]} Rdb8 {[%emt 0:01:52]} 22. Nxc5 {[%emt 0:00:08]} Bc8 {[%emt 0:00:08]} 23. Bd4 {[%emt 0:00:20]} Kf7 {[%emt 0:00:50]} 24. Rae1 {[%emt 0:05:59]} 1-0

[Event "SWE-ch Masters 2018"]
[Site "Ronneby"]
[Date "2018.07.04"]
[Round "5"]
[White "Tiger-Norqvist, Axel"]
[Black "Wengholm, Anders"]
[Result "1/2-1/2"]
[ECO "B53"]
[WhiteElo "2158"]
[BlackElo "2186"]
[Annotator "NA"]
[PlyCount "123"]
[EventDate "2018.06.30"]
[EventType "tourn"]
[EventCountry "SWE"]
[SourceTitle "playchess.com"]
[Source "ChessBase"]
[SourceQuality "1"]
[TimeControl "40/5400+30:1800+30"]

1. e4 {[%emt 0:00:00]} c5 {[%emt 0:00:01]} 2. Nf3 {[%emt 0:00:00]} d6 {[%emt 0:03:22]} 3. d4 {[%emt 0:00:00]} cxd4 {[%emt 0:00:17]} 4. Qxd4 {[%emt 0:00:18]} a6 {[%emt 0:00:34]} 5. c4 {[%emt 0:00:49]} e6 {[%emt 0:01:30]} 6. Be2 {[%emt 0:02:34]} Nf6 {[%emt 0:00:39]} 7. Nc3 {[%emt 0:01:29]} Be7 {[%emt 0:01:02]} 8. O-O {[%emt 0:02:07]} O-O {[%emt 0:04:21]} 9. Rd1 {[%emt 0:04:28]} Nc6 {[%emt 0:12:04]} 10. Qd2 {[%emt 0:04:57]} Qc7 {[%emt 0:16:24]} 11. h3 {[%emt 0:16:03]} Rd8 {[%emt 0:25:24]} 12. Qe3 {[%emt 0:12:26]} Bd7 {[%emt 0:04:19]} 13. Rb1 {[%emt 0:09:16]} Ne5 {[%emt 0:06:26]} 14. b3 {[%emt 0:05:02]} Bc6 {[%emt 0:01:31]} 15. a4 {[%emt 0:07:13]} Nxf3+ {[%emt 0:01:56]} 16. Bxf3 {[%emt 0:00:22]} a5 {[%emt 0:02:04]} 17. Ba3 {[%emt 0:03:30]} Nd7 {[%emt 0:03:46]} 18. Qf4 {[%emt 0:16:27]} Ne5 {[%emt 0:02:25]} 19. Be2 {[%emt 0:01:16]} Rac8 {[%emt 0:01:01]} 20. Qe3 {[%emt 0:01:05]} Nd7 {[%emt 0:02:32]} 21. Bd3 {[%emt 0:02:03]} b6 {[%emt 0:01:44]} 22. Bc2 {[%emt 0:01:44]} Nc5 {[%emt 0:00:27]} 23. Bb2 {[%emt 0:01:56]} Qb8 {[%emt 0:00:47]} 24. Nd5 {[%emt 0:01:17]} Bf8 {[%emt 0:01:41]} 25. Nf4 {[%emt 0:00:15]} Qb7 {[%emt 0:00:19]} 26. e5 {[%emt 0:02:18]} dxe5 {[%emt 0:00:40]} 27. Bxe5 {[%emt 0:03:08]} Be4 {[%emt 0:00:10]} 28. Rxd8 {[%emt 0:00:28]} Rxd8 {[%emt 0:00:04]} 29. Bxe4 {[%emt 0:00:06]} Nxe4 {[%emt 0:01:13]} 30. Re1 {[%emt 0:00:38]} Nd6 {[%emt 0:01:36]} 31. Nh5 {[%emt 0:00:36]} Nf5 {[%emt 0:00:51]} 32. Qg5 {[%emt 0:00:41]} Rd3 {[%emt 0:00:29]} 33. Rb1 {[%emt 0:01:20]} h6 {[%emt 0:01:30]} 34. Qg4 {[%emt 0:00:30]} Kh8 {[%emt 0:00:32]} 35. Nf4 {[%emt 0:00:29]} Rd7 {[%emt 0:00:38]} 36. Rd1 {[%emt 0:00:33]} Bc5 {[%emt 0:01:09]} 37. Nd5 {[%emt 0:00:16]} Bf8 {[%emt 0:01:03]} 38. Bc3 {[%emt 0:00:47]} Qc6 {[%emt 0:00:32]} 39. Rd3 {[%emt 0:00:30]} Kh7 {[%emt 0:01:31]} 40. Qe4 {[%emt 0:00:25]} Kh8 {[%emt 0:00:16]} 41. Qg4 {[%emt 0:11:31]} Kh7 {[%emt 0:11:21]} 42. Rf3 {[%emt 0:05:31]} Qc8 {[%emt 0:08:35]} 43. Rxf5 {[%emt 0:06:18]} exf5 {[%emt 0:02:14]} 44. Qxf5+ {[%emt 0:00:05]} Kh8 {[%emt 0:00:29]} 45. Bd4 {[%emt 0:06:19]} Qc6 {[%emt 0:01:39]} 46. Qe5 {[%emt 0:01:13]} Rd8 {[%emt 0:02:06]} 47. Qh5 {[%emt 0:01:54]} Bc5 {[%emt 0:01:48]} 48. Qh4 {[%emt 0:00:46]} Re8 {[%emt 0:00:49]} 49. Bf6 {[%emt 0:00:33]} Kh7 {[%emt 0:02:14]} 50. Bc3 {[%emt 0:00:51]} Qg6 {[%emt 0:02:15]} 51. Nf4 {[%emt 0:00:26]} Qb1+ {[%emt 0:00:24]} 52. Kh2 {[%emt 0:00:04]} Qf5 {[%emt 0:00:18]} 53. Qg3 {[%emt 0:00:16]} f6 {[%emt 0:00:29]} 54. Qd3 {[%emt 0:00:34]} Qxd3 {[%emt 0:00:28]} 55. Nxd3 {[%emt 0:00:04]} Bd6+ {[%emt 0:00:07]} 56. g3 {[%emt 0:00:11]} Re2 {[%emt 0:00:27]} 57. Kg2 {[%emt 0:00:08]} Rc2 {[%emt 0:00:27]} 58. Be1 {[%emt 0:00:47]} Ra2 {[%emt 0:00:56]} 59. Bc3 {[%emt 0:01:22]} Rc2 {[%emt 0:01:20]} 60. Be1 {[%emt 0:00:06]} Ra2 {[%emt 0:00:38]} 61. Bc3 {[%emt 0:00:57]} Rc2 {[%emt 0:00:45]} 62. Nc1 1/2-1/2

[Event "SWE-ch Masters 2018"]
[Site "Ronneby"]
[Date "2018.07.04"]
[Round "5"]
[White "Petersson, Baldur Teodor"]
[Black "Lindvall, Johannes"]
[Result "0-1"]
[ECO "C54"]
[WhiteElo "2153"]
[BlackElo "2010"]
[Annotator "NA"]
[PlyCount "50"]
[EventDate "2018.06.30"]
[EventType "tourn"]
[EventCountry "SWE"]
[SourceTitle "playchess.com"]
[Source "ChessBase"]
[SourceQuality "1"]
[TimeControl "40/5400+30:1800+30"]

1. e4 {[%emt 0:00:00]} e5 {[%emt 0:00:00]} 2. Nf3 {[%emt 0:00:00]} Nc6 {[%emt 0:00:00]} 3. Bc4 {[%emt 0:00:00]} Bc5 {[%emt 0:00:27]} 4. c3 {[%emt 0:00:25]} Nf6 {[%emt 0:00:55]} 5. Qe2 {[%emt 0:00:27]} O-O {[%emt 0:04:40]} 6. d3 {[%emt 0:00:14]} d6 {[%emt 0:02:35]} 7. h3 {[%emt 0:01:19]} a6 {[%emt 0:01:08]} 8. Bb3 {[%emt 0:00:23]} Re8 {[%emt 0:02:29]} 9. Nbd2 {[%emt 0:02:53]} Ba7 {[%emt 0:03:22]} 10. Nf1 {[%emt 0:02:43]} Qe7 {[%emt 0:06:41]} 11. Ng3 {[%emt 0:04:08]} Be6 {[%emt 0:00:14]} 12. O-O {[%emt 0:01:58]} h6 {[%emt 0:02:49]} 13. Nh2 {[%emt 0:06:52]} d5 {[%emt 0:06:13]} 14. Ng4 {[%emt 0:01:59]} Rad8 {[%emt 0:12:31]} 15. Qf3 {[%emt 0:09:02]} Nxg4 {[%emt 0:02:50]} 16. hxg4 {[%emt 0:02:12]} dxe4 {[%emt 0:02:44]} 17. dxe4 {[%emt 0:00:25]} Bxb3 {[%emt 0:00:14]} 18. axb3 {[%emt 0:00:37]} Qe6 {[%emt 0:00:13]} 19. Nf5 {[%emt 0:04:02]} Ne7 {[%emt 0:03:30]} 20. b4 {[%emt 0:09:17]} Bb6 {[%emt 0:02:47]} 21. Ng3 {[%emt 0:17:00]} Ng6 {[%emt 0:06:46]} 22. Nf5 {[%emt 0:08:53]} Ne7 {[%emt 0:06:04]} 23. g3 {[%emt 0:01:49]} Qc4 {[%emt 0:02:51]} 24. b3 {[%emt 0:13:22]} Qd3 {[%emt 0:01:20]} 25. Nd4 {[%emt 0:07:22]} Rxd4 {[%emt 0:00:35]} 0-1